Cogmind - Beta 15 @@@ ROGUE MODE // 2025.10.11 @ 10:48:31 Player: satan5 Result: Self-destructed Performance ------------- Evolutions (2) 1000 Regions Visited (3) 600 Robots Destroyed (13) 65 Value Destroyed (362) 362 Prototype IDs (11) 220 Alien Tech Used (0) 0 Bonus (0) 0 TOTAL SCORE: 2247 Bonus ------- None Cogmind --------- Core Integrity 541/550 Matter 93/300 Energy 51/100 System Corruption 0% Temperature Cool (0) Movement Walking (90) Location -8/Materials Parts ------- > --- POWER (1) -------- (None) > --- PROPULSION (4+3) - Arachnoskeleton > --- UTILITY (4) ------ Small Storage Unit Seismic Detector > --- WEAPON (2) ------- Light Assault Rifle Grenade Launcher > --- INVENTORY (8) ---- Improved Terrain Scanner System Shield Makeshift System Restoration Module Grenade Launcher Peak State ------------ > --- POWER ------------ (None) > --- PROPULSION ------- Arachnoskeleton > --- UTILITY ---------- Small Storage Unit Seismic Detector > --- WEAPON ----------- Subdweller Machine Gun Subdweller Machine Gun > --- INVENTORY -------- Improved Terrain Scanner Makeshift System Restoration Module Light Assault Rifle Grenade Launcher Grenade Launcher [Rating: 28] Favorites ----------- Power Ion Engine Engine Ion Engine Propulsion Light Treads Treads Light Treads Leg Aluminum Leg Utility Small Storage Unit Device Seismic Detector Storage Small Storage Unit Weapon Subdweller Machine Gun Energy Gun Small Laser Ballistic Gun Subdweller Machine Gun Launcher Grenade Launcher Build | -11 -10 -10 -8 ------- Run | Yrd Mat Sub Mat Slots Evolved 4 | . . . 4 Power . | . . . . Propulsion 2 | . . . 2 Utility 2 | . . . 2 Weapon . | . . . . Parts Attached 16 | 8 . 7 1 Power 1 | 1 . . . Engine 1 | 1 . . . Core . | . . . . Reactor . | . . . . Propulsion 5 | 2 . 2 1 Treads 2 | . . 2 . Leg 3 | 2 . . 1 Wheel . | . . . . Hover . | . . . . Flight . | . . . . Utility 3 | 3 . . . Device 2 | 2 . . . Storage 1 | 1 . . . Processor . | . . . . Hackware . | . . . . Protection . | . . . . Artifact . | . . . . Weapon 7 | 2 . 5 . Energy Gun 2 | 1 . 1 . Energy Cannon . | . . . . Ballistic Gun 3 | 1 . 2 . Ballistic Cannon . | . . . . Launcher 2 | . . 2 . Special Weapon . | . . . . Impact Weapon . | . . . . Slashing Weapon . | . . . . Piercing Weapon . | . . . . Special Melee Weapon . | . . . . Unidentified Prototypes . | . . . . Parts Lost 2 | . . 2 . Power 1 | . . 1 . Propulsion . | . . . . Utility . | . . . . Weapon 1 | . . 1 . Highest Loss Streak 1 | . . 1 . To Critical Strikes . | . . . . Average Backups 5 | 1 4 6 5 Power . | . 1 . . Propulsion 1 | . . 1 . Utility 1 | . 1 1 2 Weapon 2 | . 1 2 2 Tool/Special . | . . . . Unused Backups 3 | . . 1 2 Power 1 | . . 1 . Propulsion . | . . . . Utility 2 | . . . 2 Weapon . | . . . . Tool/Special . | . . . . Average Slot Usage (%) 92 | . 100 96 36 Engine 10 | . 14 10 . Treads 14 | . . 17 . Leg 11 | . 28 10 6 Device 13 | . 14 14 7 Storage 13 | . 14 14 7 Energy Gun 5 | . 14 4 . Ballistic Gun 19 | . 14 21 10 Launcher 1 | . . 1 4 Peak Build Rating 28 | 9 7 12 28 Average Rating 10 | 5 7 9 26 On Entrance 6 | . 7 7 11 Naked Turns . | . . . . Heaviest Build 19 | 13 13 19 14 Greatest Support 50 | 20 20 40 50 Greatest Overweight (x) . | . . . . Average Overweight (x) . | . . . . Largest Inventory Capacity 8 | 8 8 8 8 Average Capacity 7 | 7 8 8 8 Most Carried 8 | 3 7 8 8 Average Carried 6 | 1 4 7 5 Final Capacity 8 | 8 8 8 8 Final Carried 8 | 3 7 8 4 Class Distribution -------------------- 100% | Mutant Dominant Class ---------------- Mutant | -10/Materials Mutant | -10/Subcaves Mutant | -8/Materials Resources | -11 -10 -10 -8 ----------- Run | Yrd Mat Sub Mat Matter Collected 593 | 230 . 363 . Remotely . | . . . . Salvage Created 282 | 12 . 214 56 Parts 21 | 4 . 10 7 Haulers Intercepted . | . . . . Recyclers Shooed . | . . . . Parts Field Recycled . | . . . . Retrieved Matter . | . . . . Parts Self-Destructed 9 | . . 9 . Prevented . | . . . . Kills | -11 -10 -10 -8 ------- Run | Yrd Mat Sub Mat Combat Hostiles Destroyed 10 | . . 8 2 Melee 1 | . . 1 . Guns 4 | . . 4 . AOE 5 | . . 3 2 Classes Destroyed 5 | 1 . 2 2 Builder 2 | . . . 2 Tunneler 1 | 1 . . . Swarmer 2 | . . 1 1 Sentry 1 | . . . 1 Subdweller 7 | . . 7 . Best Kill Streak 2 | 1 . 2 2 Combat Bots Only 2 | . . 2 1 Max Kills in Single Turn 1 | 1 . 1 1 Gunslinging . | . . . . Exploded 1 | . . 1 1 Melee 1 | . . 1 . Uniques/NPCs Destroyed . | . . . . Combat | -11 -10 -10 -8 -------- Run | Yrd Mat Sub Mat Hostile Shots Fired 63 | . . 56 7 Missed 18 | . . 12 6 Hits 45 | . . 44 1 Projectile 45 | . . 44 1 Critical Strikes 1 | . . 1 . Damage Taken 947 | . . 938 9 Core 240 | . . 231 9 Absorbed by Shields . | . . . . Core Remaining (%) 53 | 100 . 7 . Volleys Fired 87 | 4 2 64 17 Largest 2 | 2 2 2 1 Hottest 60 | 60 60 60 30 Shots Fired 126 | 8 4 98 16 Gun 101 | 8 4 80 9 Cannon . | . . . . Launcher 25 | . . 18 7 Special . | . . . . Kinetic 74 | 4 2 59 9 Thermal 8 | 4 2 2 . Explosive 25 | . . 18 7 Electromagnetic 19 | . . 19 . Robot Hit Streak 11 | 2 2 11 4 Robot Miss Streak 4 | 1 1 4 4 Penetration Max . | . . . . Secondary Targets . | . . . . Shots Hit Robots 61 | 4 2 49 6 Core Hits 24 | 1 1 17 5 Critical Kills . | . . . . Critical Parts Destroyed . | . . . . Critical Strikes 1 | . . 1 . Destroy 1 | . . 1 . Melee Attacks . | . . . . Impact . | . . . . Slashing . | . . . . Piercing . | . . . . Sneak Attacks . | . . . . Combat Hostiles . | . . . . Follow-up Attacks . | . . . . Damage Inflicted 1467 | 37 22 1208 200 Guns 705 | 37 22 629 17 Cannons . | . . . . Explosions 761 | . . 578 183 Melee . | . . . . Ramming 1 | . . 1 . Kinetic 537 | 16 10 494 17 Thermal 44 | 21 12 11 . Explosive 761 | . . 578 183 Electromagnetic 124 | . . 124 . Impact . | . . . . Slashing . | . . . . Piercing . | . . . . Highest Corruption . | . . . . Average Corruption . | . . . . Corruption Purged . | . . . . Corruption Blocked . | . . . . Overload Shots . | . . . . Overflow Damage . | . . . . Projectiles . | . . . . Explosions . | . . . . Melee . | . . . . Knockbacks . | . . . . Impact . | . . . . Kinetic . | . . . . Secondary . | . . . . Self-Inflicted Damage 72 | . . 72 . Shots 4 | . . 4 . Rammed 1 | . . 1 . Targets Rammed 1 | . . 1 . Kicked . | . . . . Crushed . | . . . . Highest Temperature 20 | 20 20 . . Average Temperature 15 | 15 15 . . Received Heat Transfer 168 | . . 168 . Siege Activations . | . . . . Martial Activations . | . . . . Shielding Activations . | . . . . Robots Disrupted . | . . . . Combat Hostiles . | . . . . Robots Corrupted . | . . . . Combat Hostiles . | . . . . Parts Fried 1 | . . 1 . Impact Corruptions . | . . . . Robots Melted . | . . . . Combat Hostiles . | . . . . Parts Melted . | . . . . Heat Transferred 100 | 50 25 25 . Parts Sabotaged . | . . . . Parts Stolen . | . . . . Parts Stripped . | . . . . Power Chain Reactions . | . . . . Alert | -11 -10 -10 -8 ------- Run | Yrd Mat Sub Mat Maximum Alert Level . | . . . . Low Security (%) 100 | 100 100 . 100 Level 1 . | . . . . Level 2 . | . . . . Level 3 . | . . . . Level 4 . | . . . . Level 5 . | . . . . High Security . | . . . . Max Security . | . . . . Peak Influence 117 | 5 . . 117 Initial 5 | . . . 5 Average 20 | . . . 60 Influence Increases 182 | 5 . 20 157 Destroy 0b10 Robot/C 60 | . . 20 40 Destroy 0b10 Robot/NC 15 | 5 . . 10 Destroy Leader 10 | . . . 10 Destroy Structure 37 | . . . 37 Lose Combat Pursuer 60 | . . . 60 Influence Decreases 65 | 5 . 8 52 Entered New Map 7 | . . . 7 Time Decay 58 | 5 . 8 45 Squads Dispatched 1 | . . . 1 Investigation . | . . . . Extermination . | . . . . Reinforcement 1 | . . . 1 Assault . | . . . . Garrison . | . . . . Intercept . | . . . . Searches Triggered . | . . . . Construction Impeded 1 | . . . 1 Haulers Reinforced . | . . . . Active Scanning Responses . | . . . . Cargo Convoy Interrupts . | . . . . Stealth | -11 -10 -10 -8 --------- Run | Yrd Mat Sub Mat Distress Signals 1 | . . . 1 Communications Jammed . | . . . . Distress Signals . | . . . . Times Spotted 17 | . 1 8 8 Peak Tracking Total 5 | . 1 2 5 Tactical Retreats 2 | . . . 2 Traps | -11 -10 -10 -8 ------- Run | Yrd Mat Sub Mat Traps Triggered . | . . . . Indirectly . | . . . . Trap Hack Attempts . | . . . . Triggered . | . . . . Disarmed . | . . . . Reprogrammed . | . . . . Reused . | . . . . Traps Extracted . | . . . . Installed . | . . . . Triggered . | . . . . Machines | -11 -10 -10 -8 ---------- Run | Yrd Mat Sub Mat Machines Disabled 1 | . . 1 . Max in Single Turn 1 | . . 1 . Machines Repaired . | . . . . Machines Dismantled . | . . . . Machines Sabotaged . | . . . . Overloaded Fab Kills . | . . . . Hacking | -11 -10 -10 -8 --------- Run | Yrd Mat Sub Mat Machines Accessed 4 | . 1 2 1 Terminals 1 | . 1 . . Fabricators . | . . . . Repair Stations . | . . . . Recycling Units 1 | . . . 1 Scanalyzers . | . . . . Garrison Access . | . . . . Total Hacks 19 | . 2 14 3 Successful 15 | . . 14 1 Failed 4 | . 2 . 2 Catastrophic 1 | . . . 1 Database Lockouts . | . . . . Manual 4 | . 2 . 2 Terminals 2 | . 2 . . Fabricators . | . . . . Repair Stations . | . . . . Recycling Units 3 | . . . 3 Scanalyzers . | . . . . Garrison Access . | . . . . Terminal Hacks 14 | . . 14 . Record 13 | . . 13 . Proto ID Catalog 1 | . . 1 . Fabricator Hacks . | . . . . Repair Station Hacks . | . . . . Recycling Unit Hacks 1 | . . . 1 Retrieve Components 1 | . . . 1 Scanalyzer . | . . . . Garrison Access Hacks . | . . . . Unauthorized Hacks . | . . . . Terminals . | . . . . Fabricators . | . . . . Repair Stations . | . . . . Recycling Units . | . . . . Scanalyzers . | . . . . Garrison Access . | . . . . Data Cores Recovered . | . . . . Used . | . . . . Hacking Detections 2 | . 1 . 1 Full Trace Events 1 | . 1 . . Feedback Events . | . . . . Feedback Blocked . | . . . . Robot Schematics Acquired . | . . . . Robots Built . | . . . . Authchips . | . . . . Time . | . . . . Total Robot Build Rating . | . . . . Part Schematics Acquired . | . . . . Parts Built . | . . . . Authchips . | . . . . Time . | . . . . Total Part Build Rating . | . . . . Parts Repaired . | . . . . Time . | . . . . Parts Recycled . | . . . . Recycled Matter . | . . . . Retrieved Matter . | . . . . Retrieved Components 1 | . . . 1 Parts Scanalyzed . | . . . . Part Schematics Acquired . | . . . . Parts Damaged . | . . . . Bothacking | -11 -10 -10 -8 ------------ Run | Yrd Mat Sub Mat Used RIF Installer . | . . . . Robots Hacked . | . . . . Non-combat . | . . . . Combat . | . . . . Robot Hacks Applied . | . . . . Relay Couplers Released . | . . . . Fabnet Peak Effective % . | . . . . Robots Rewired . | . . . . Allies Hacked . | . . . . Hacks Repelled . | . . . . Allies | -11 -10 -10 -8 -------- Run | Yrd Mat Sub Mat Total Allies . | . . . . Largest Group . | . . . . Highest-Rated Group . | . . . . Highest-Rated Ally . | . . . . Total Orders . | . . . . Ally Attacks . | . . . . Total Damage . | . . . . Kills . | . . . . Allies Corrupted . | . . . . Allies Melted . | . . . . Intel | -11 -10 -10 -8 ------- Run | Yrd Mat Sub Mat Active Infowar (turns) 1629 | 10 114 1460 45 Terrain 4 | 4 . . . Seismic 1625 | 6 114 1460 45 Robot Analysis Total . | . . . . Derelict Logs Recovered 1 | . . 1 . Drone Launches . | . . . . Drone Recoveries . | . . . . Exploration | -11 -10 -10 -8 ------------- Run | Yrd Mat Sub Mat Turns Passed 1759 | 82 114 1460 103 Spaces Moved 1043 | 49 66 887 41 Core 3 | 3 . . . Treads 512 | . . 512 . Legs 528 | 46 66 375 41 Wheels . | . . . . Hover . | . . . . Flight . | . . . . Fastest Speed 50 | 50 120 120 90 Average Speed 138 | 115 120 143 90 Slowest Speed 160 | 120 120 160 90 Overloaded Moves . | . . . . Propulsion Burnouts . | . . . . Robots Hopped . | . . . . Potential Cave-ins . | . . . . Cave-ins Triggered . | . . . . Exploration Rate (%) 15 | 3 14 38 8 Regions Visited 3 Branch Regions 1 Pre-discovered Areas 1 | . . 1 . Known Exits Taken . | . . . . Unknown Exits Taken 3 | 1 1 1 . Scrap Searched . | . . . . Spaces Dug 6 | . . 6 . Terrain Destroyed 134 | . . 82 52 Melee . | . . . . Projectile . | . . . . AOE 134 | . . 82 52 Terrain Rammed . | . . . . Walls Destroyed . | . . . . Machines Disabled . | . . . . Actions | -11 -10 -10 -8 --------- Run | Yrd Mat Sub Mat Total 1230 | 63 97 978 92 Wait 60 | . 26 8 26 Move 1040 | 48 65 886 41 Hop . | . . . . Pick Up 10 | 3 4 2 1 Fast Attach 7 | 7 . . . Attach 2 | . . 1 1 Detach . | . . . . Swap 15 | 1 . 12 2 Drop 8 | . . 4 4 Fire 87 | 4 2 64 17 Melee . | . . . . Ram . | . . . . Kick . | . . . . Crush 1 | . . 1 . Escape Stasis . | . . . . Rewire . | . . . . Trap . | . . . . Miscellaneous . | . . . . Route ------- -11/Scrapyard -10/Materials -10/Subcaves (discovered 2 exits: *Mat / [*Rec]) -8/Materials History --------- Turn | Location | Event 6 | -11/Scrapyard | Discovered new exit (range 16) 83 | -11/Scrapyard | Entered Materials 192 | -10/Materials | Discovered new exit (range 5) 197 | -10/Materials | Entered Subcaves 253 | -10/Subcaves | Learned location of Zion (-7) 264 | -10/Subcaves | Ambushed by Subdwellers from Twisted Machinery 315 | -10/Subcaves | Build established: Mutant 368 | -10/Subcaves | Shifting Twisted Machinery released Flamer 415 | -10/Subcaves | Visited 4L-MR0's lab 497 | -10/Subcaves | Shifting Twisted Machinery released Sub. Machine Gun 681 | -10/Subcaves | Ambushed by Subdweller buried in earth 692 | -10/Subcaves | Core integrity fell below 50% 745 | -10/Subcaves | Found Arachnoskeleton 1266 | -10/Subcaves | Visited Clippyterm 1270 | -10/Subcaves | Learned Factory fabricator intel 1270 | -10/Subcaves | Learned Factory stockpile data 1310 | -10/Subcaves | Ambushed by Subdwellers from Twisted Machinery 1325 | -10/Subcaves | Core integrity fell below 20% 1596 | -10/Subcaves | Discovered new exit (range 15) 1601 | -10/Subcaves | Discovered new exit (range 6) 1657 | -10/Subcaves | Entered Materials 1657 | -8/Materials | Evolved 4 slots: Propulsion x2, Utility x2 1660 | -8/Materials | Attached Arachnoskeleton, gained temporary slots: Propulsion x3 1760 | -8/Materials | Self-destructed Last Messages --------------- 01719_ Y-45 Defender destroyed. 01721_ W-25 Informer sends out distress signal. 01726_ The unstable cave ceiling collapses. 01730_ R-06 Scavenger collects Flight Unit. 01733_ The unstable cave ceiling collapses. 01735_ Dropped Broken Sub. Machine Gun. 01736_ U-05 Engineer lays Concrete. 01736_ Dropped Broken Sub. Machine Gun. 01737_ U-05 Engineer lays Concrete. 01743_ K-01 Serf collects debris. 01743_ U-05 Engineer builds a Door. 01747_ K-01 Serf collects debris. 01747_ U-05 Engineer lays Concrete. 01749_ U-05 Engineer builds a Wall. 01750_ The unstable cave ceiling collapses. 01751_ Lgt. Treads crushed. 01753_ The unstable cave ceiling collapses. 01753_ ALERT: Construction progress impeded, dispatching reinforcements to local area. 01758_ U-05 Engineer destroyed. Map ----- +----------------------------------------------------+ | ??????????????????????# #?????????????????? | | ?????????????????????? #?????????????????? | | ??????????????????????? T ?????????????????? | | ??????????????????????? ??????????????????? | | ??????????????????????? ???????????????#??? | | ???????????????????????# #?????????????? #??? | | ???????????????????????# #?????????????? #??? | | ???????????????????????+ #??##########?? #??? | | ???????????????????????# #??# ### #??? | | ??????????????????###### #??# # #??? | | ??????????????????# ! # ##?# # ==#??? | | ??????????????????# # #?# # #??? | | ??????????????????# ### + #??? | | ??????????????????# = *+ # #??? | | ??????????????????# !% ### # #??? | | ??????????????????# "" ## # # #??? | | ??????????????????# Y" # # # #??? | | ??????????????????# "" #[[ # ########## #??? | | ??????????????????# # ##????????# #??? | | ??????????????????####### #????????# #??? | | ???????????????######## ###???????? #??? | | ???????????????# g #?????????? #??? | | ???????????????# g #?????????? #??? | | ???????????? + l #??????????#####??? | | ???????????# ######## /# #####?????????????? | | ??????????????????????# @ ] #?????????????? | | ?????????????????????# #?????????????? | | ?????????????????????##! ! ] #?????????????? | | ??????????????????????# #?????????????? | | ??????????????????????# """ #?????????????? | | ??????????????????????# """ !! #?????????????? | | ?????????????????????? """ !! #?????????????? | | ??????????????????????# %= #?????????????? | | ??????????????????????#######+###?????????????? | | ??????????????????????????????????????????????? | | ??????????????????????????????????????????????? | | ??????????????????????????????????????????????? | | ??????????????????????????????????????????????? | | ??????????????????????????????????????????????? | | ??????????????????????????????????????????????? | | ??????????????????????????????????????????????? | | ??????????????????????????????????????????????? | | ??????????????????????????????????????????????? | | ??????????????????????????????????????????????? | | ??????????????????????????????????????????????? | | ??????????????????????????????????????????????? | | ??????????????????????????????????????????????? | | ??????????????????????????????????????????????? | | ??????????????????????????????????????????????? | | ??????????????????????????????????????????????? | +----------------------------------------------------+ Best States ------------- Heat Dissipation 31 Energy Generation 10 Energy Capacity 250 Matter Stores 257 Matter Capacity 300 Sight Range 16 Terrain Scan Density 10 Evasion (%) 57 Recoil Reduction 2 Item Schematics ----------------- None Robot Schematics ------------------ None Fabricated ------------ Nothing Repaired ---------- Nothing Alien Tech Used ----------------- None Achievements -------------- None Challenges ------------ None Game ------ Seed CommCentriumProtomatter Manual? 0 Play Time 00:10:53 Cumulative 340.2 hours Start 2025.08.06 @ 14:00:37 End 2025.10.11 @ 10:48:31 Sessions 3 Manual Loads 0 Difficulty Rogue Special Mode None Game No. 165 Rogue 151 Adventurer 14 Explorer 0 Win Type - Total 18 Types 15/0/1/1/0/0/0/0/1/0 Lore% 65 Gallery% 73 Achievement% 68 Wizard Run 0 Options --------- Layout 1 ASCII 0 Keyboard 0 Movement Arrows Keybinds 0 Fullscreen 1 Font 24/Smallcaps Map View 50x35 Zoom Use 0% Tactical HUD 1 Map Filters NONE Filters NONE Steam 1 RUN: cdf9ac11-dd6c-4b57-ad23-32543ede6b80